{"text_format":"3","workbook":"xlsx","n_sheets":3,"sheets":["Dane potencjalnych klientów","Sprzedaż prognozowana ","Miesięczna prognoza ważona"],"not_rendered":{"charts":1,"defined_names":10},"read":"whole","date_system":"1900"}

{"sheet":"Dane potencjalnych klientów","index":0,"n_rows":9,"n_cols":10,"rows_kept":9,"merged":[[3,1,3,8]]}
[null,"Nazwa firmy"]
[null,"Szczegółowe śledzenie potencjalnych klientów"]
[null,{"$f":"TODAY()","v":"2018-05-14"}]
[null,{"$f":"Nazwa_firmy","v":"Nazwa firmy"},{"$nulls":7},"POUFNE"]
[null,"Nazwa potencjalnego klienta","Osoba kontaktowa potencjalnego klienta","Źródło \npotencjalnego klienta","Region \npotencjalnego klienta","Typ \npotencjalnego klienta","Potencjalna szansa sprzedaży","Szansa \nsprzedaży","Zamknięcie \nprognozy","Prognoza \nważona"]
[null,"A. Datum Corporation",{"$nulls":3},"Strategiczny",{"v":300000,"d":"300,000.00 zł"},{"v":0.9,"d":"90%"},"Styczeń",{"$f":"IFERROR(IF(Dane_potencjalnych_klientów[Szansa \nsprzedaży]<>\"\",Dane_potencjalnych_klientów[Szansa \nsprzedaży]*Dane_potencjalnych_klientów[Potencjalna szansa sprzedaży],\"\"),\"\")","v":{"v":270000,"d":"270,000.00 zł"}}]
[null,"Adventure Works",{"$nulls":3},"Strategiczny",{"v":200000,"d":"200,000.00 zł"},{"v":0.1,"d":"10%"},"Luty",{"$f":"IFERROR(IF(Dane_potencjalnych_klientów[Szansa \nsprzedaży]<>\"\",Dane_potencjalnych_klientów[Szansa \nsprzedaży]*Dane_potencjalnych_klientów[Potencjalna szansa sprzedaży],\"\"),\"\")","v":{"v":20000,"d":"20,000.00 zł"}}]
[null,"Alpine Ski House",{"$nulls":3},"Taktyczny",{"v":100000,"d":"100,000.00 zł"},{"v":0.2,"d":"20%"},"Marzec",{"$f":"IFERROR(IF(Dane_potencjalnych_klientów[Szansa \nsprzedaży]<>\"\",Dane_potencjalnych_klientów[Szansa \nsprzedaży]*Dane_potencjalnych_klientów[Potencjalna szansa sprzedaży],\"\"),\"\")","v":{"v":20000,"d":"20,000.00 zł"}}]
[null,"Suma",{"$nulls":4},{"$f":"SUBTOTAL(109,Dane_potencjalnych_klientów[Potencjalna szansa sprzedaży])","v":{"v":600000,"d":"600,000.00 zł"}},null,null,{"$f":"SUBTOTAL(109,Dane_potencjalnych_klientów[Prognoza \nważona])","v":{"v":310000,"d":"310,000.00 zł"}}]

{"sheet":"Sprzedaż prognozowana ","index":1,"n_rows":21,"n_cols":14,"rows_kept":21,"merged":[[3,1,3,11],[3,12,3,13]]}
[null,{"$f":"Nazwa_firmy","v":"Nazwa firmy"}]
[null,"Sprzedaż prognozowana"]
[null,{"$f":"Data_śledzenia","v":"2018-05-14"}]
[null,{"$f":"Nazwa_firmy","v":"Nazwa firmy"},{"$nulls":10},"POUFNE"]
[null,"Nazwa potencjalnego klienta","Prognoza \nna styczeń","Prognoza \nna luty","Prognoza \nna marzec","Prognoza \nna kwiecień","Prognoza \nna maj","Prognoza \nna czerwiec","Prognoza na lipiec","Prognoza \nna sierpień","Prognoza \nna wrzesień","Prognoza \nna październik","Prognoza \nna listopad","Prognoza \nna grudzień"]
[null,{"$f":"IFERROR(IF(AND(Dane_potencjalnych_klientów[Nazwa potencjalnego klienta] <> \"\", ROW(Sprzedaż_prognozowana[Nazwa potencjalnego klienta])<>Ostatni_wpis),Dane_potencjalnych_klientów[Nazwa potencjalnego klienta], \"\"),\"\")","v":"A. Datum Corporation"},{"$f":"IFERROR(IF(Dane_potencjalnych_klientów[Zamknięcie \nprognozy] <>\"\",IF(Dane_potencjalnych_klientów[Zamknięcie \nprognozy]= \"Styczeń\",Dane_potencjalnych_klientów[Prognoza \nważona],0),\"\"),\"\")","v":{"v":270000,"d":"270,000 zł"}},{"$f":"IFERROR(IF(Dane_potencjalnych_klientów[Zamknięcie \nprognozy] <>\"\",IF(Dane_potencjalnych_klientów[Zamknięcie \nprognozy]= \"Luty\",Dane_potencjalnych_klientów[Prognoza \nważona],0),\"\"),\"\")","v":{"v":0,"d":"0 zł"}},{"$f":"IFERROR(IF(Dane_potencjalnych_klientów[Zamknięcie \nprognozy] <>\"\",IF(Dane_potencjalnych_klientów[Zamknięcie \nprognozy]= \"Marzec\",Dane_potencjalnych_klientów[Prognoza \nważona],0),\"\"),\"\")","v":{"v":0,"d":"0 zł"}},{"$f":"IFERROR(IF(Dane_potencjalnych_klientów[Zamknięcie \nprognozy] <>\"\",IF(Dane_potencjalnych_klientów[Zamknięcie \nprognozy]= \"Kwiecień\",Dane_potencjalnych_klientów[Prognoza \nważona],0),\"\"),\"\")","v":{"v":0,"d":"0 zł"}},{"$f":"IFERROR(IF(Dane_potencjalnych_klientów[Zamknięcie \nprognozy] <>\"\",IF(Dane_potencjalnych_klientów[Zamknięcie \nprognozy]= \"Maj\",Dane_potencjalnych_klientów[Prognoza \nważona],0),\"\"),\"\")","v":{"v":0,"d":"0 zł"}},{"$f":"IFERROR(IF(Dane_potencjalnych_klientów[Zamknięcie \nprognozy] <>\"\",IF(Dane_potencjalnych_klientów[Zamknięcie \nprognozy]= \"Czerwiec\",Dane_potencjalnych_klientów[Prognoza \nważona],0),\"\"),\"\")","v":{"v":0,"d":"0 zł"}},{"$f":"IFERROR(IF(Dane_potencjalnych_klientów[Zamknięcie \nprognozy] <>\"\",IF(Dane_potencjalnych_klientów[Zamknięcie \nprognozy]= \"Lipiec\",Dane_potencjalnych_klientów[Prognoza \nważona],0),\"\"),\"\")","v":{"v":0,"d":"0 zł"}},{"$f":"IFERROR(IF(Dane_potencjalnych_klientów[Zamknięcie \nprognozy] <>\"\",IF(Dane_potencjalnych_klientów[Zamknięcie \nprognozy]= \"Sierpień\",Dane_potencjalnych_klientów[Prognoza \nważona],0),\"\"),\"\")","v":{"v":0,"d":"0 zł"}},{"$f":"IFERROR(IF(Dane_potencjalnych_klientów[Zamknięcie \nprognozy] <>\"\",IF(Dane_potencjalnych_klientów[Zamknięcie \nprognozy]= \"Wrzesień\",Dane_potencjalnych_klientów[Prognoza \nważona],0),\"\"),\"\")","v":{"v":0,"d":"0 zł"}},{"$f":"IFERROR(IF(Dane_potencjalnych_klientów[Zamknięcie \nprognozy] <>\"\",IF(Dane_potencjalnych_klientów[Zamknięcie \nprognozy]= \"Październik\",Dane_potencjalnych_klientów[Prognoza \nważona],0),\"\"),\"\")","v":{"v":0,"d":"0 zł"}},{"$f":"IFERROR(IF(Dane_potencjalnych_klientów[Zamknięcie \nprognozy] <>\"\",IF(Dane_potencjalnych_klientów[Zamknięcie \nprognozy]= \"Listopad\",Dane_potencjalnych_klientów[Prognoza \nważona],0),\"\"),\"\")","v":{"v":0,"d":"0 zł"}},{"$f":"IFERROR(IF(Dane_potencjalnych_klientów[Zamknięcie \nprognozy] <>\"\",IF(Dane_potencjalnych_klientów[Zamknięcie \nprognozy]= \"Grudzień\",Dane_potencjalnych_klientów[Prognoza \nważona],0),\"\"),\"\")","v":{"v":0,"d":"0 zł"}}]
[null,{"$f":"IFERROR(IF(AND(Dane_potencjalnych_klientów[Nazwa potencjalnego klienta] <> \"\", ROW(Sprzedaż_prognozowana[Nazwa potencjalnego klienta])<>Ostatni_wpis),Dane_potencjalnych_klientów[Nazwa potencjalnego klienta], \"\"),\"\")","v":"Adventure Works"},{"$f":"IFERROR(IF(Dane_potencjalnych_klientów[Zamknięcie \nprognozy] <>\"\",IF(Dane_potencjalnych_klientów[Zamknięcie \nprognozy]= \"Styczeń\",Dane_potencjalnych_klientów[Prognoza \nważona],0),\"\"),\"\")","v":{"v":0,"d":"0 zł"}},{"$f":"IFERROR(IF(Dane_potencjalnych_klientów[Zamknięcie \nprognozy] <>\"\",IF(Dane_potencjalnych_klientów[Zamknięcie \nprognozy]= \"Luty\",Dane_potencjalnych_klientów[Prognoza \nważona],0),\"\"),\"\")","v":{"v":20000,"d":"20,000 zł"}},{"$f":"IFERROR(IF(Dane_potencjalnych_klientów[Zamknięcie \nprognozy] <>\"\",IF(Dane_potencjalnych_klientów[Zamknięcie \nprognozy]= \"Marzec\",Dane_potencjalnych_klientów[Prognoza \nważona],0),\"\"),\"\")","v":{"v":0,"d":"0 zł"}},{"$f":"IFERROR(IF(Dane_potencjalnych_klientów[Zamknięcie \nprognozy] <>\"\",IF(Dane_potencjalnych_klientów[Zamknięcie \nprognozy]= \"Kwiecień\",Dane_potencjalnych_klientów[Prognoza \nważona],0),\"\"),\"\")","v":{"v":0,"d":"0 zł"}},{"$f":"IFERROR(IF(Dane_potencjalnych_klientów[Zamknięcie \nprognozy] <>\"\",IF(Dane_potencjalnych_klientów[Zamknięcie \nprognozy]= \"Maj\",Dane_potencjalnych_klientów[Prognoza \nważona],0),\"\"),\"\")","v":{"v":0,"d":"0 zł"}},{"$f":"IFERROR(IF(Dane_potencjalnych_klientów[Zamknięcie \nprognozy] <>\"\",IF(Dane_potencjalnych_klientów[Zamknięcie \nprognozy]= \"Czerwiec\",Dane_potencjalnych_klientów[Prognoza \nważona],0),\"\"),\"\")","v":{"v":0,"d":"0 zł"}},{"$f":"IFERROR(IF(Dane_potencjalnych_klientów[Zamknięcie \nprognozy] <>\"\",IF(Dane_potencjalnych_klientów[Zamknięcie \nprognozy]= \"Lipiec\",Dane_potencjalnych_klientów[Prognoza \nważona],0),\"\"),\"\")","v":{"v":0,"d":"0 zł"}},{"$f":"IFERROR(IF(Dane_potencjalnych_klientów[Zamknięcie \nprognozy] <>\"\",IF(Dane_potencjalnych_klientów[Zamknięcie \nprognozy]= \"Sierpień\",Dane_potencjalnych_klientów[Prognoza \nważona],0),\"\"),\"\")","v":{"v":0,"d":"0 zł"}},{"$f":"IFERROR(IF(Dane_potencjalnych_klientów[Zamknięcie \nprognozy] <>\"\",IF(Dane_potencjalnych_klientów[Zamknięcie \nprognozy]= \"Wrzesień\",Dane_potencjalnych_klientów[Prognoza \nważona],0),\"\"),\"\")","v":{"v":0,"d":"0 zł"}},{"$f":"IFERROR(IF(Dane_potencjalnych_klientów[Zamknięcie \nprognozy] <>\"\",IF(Dane_potencjalnych_klientów[Zamknięcie \nprognozy]= \"Październik\",Dane_potencjalnych_klientów[Prognoza \nważona],0),\"\"),\"\")","v":{"v":0,"d":"0 zł"}},{"$f":"IFERROR(IF(Dane_potencjalnych_klientów[Zamknięcie \nprognozy] <>\"\",IF(Dane_potencjalnych_klientów[Zamknięcie \nprognozy]= \"Listopad\",Dane_potencjalnych_klientów[Prognoza \nważona],0),\"\"),\"\")","v":{"v":0,"d":"0 zł"}},{"$f":"IFERROR(IF(Dane_potencjalnych_klientów[Zamknięcie \nprognozy] <>\"\",IF(Dane_potencjalnych_klientów[Zamknięcie \nprognozy]= \"Grudzień\",Dane_potencjalnych_klientów[Prognoza \nważona],0),\"\"),\"\")","v":{"v":0,"d":"0 zł"}}]
[null,{"$f":"IFERROR(IF(AND(Dane_potencjalnych_klientów[Nazwa potencjalnego klienta] <> \"\", ROW(Sprzedaż_prognozowana[Nazwa potencjalnego klienta])<>Ostatni_wpis),Dane_potencjalnych_klientów[Nazwa potencjalnego klienta], \"\"),\"\")","v":"Alpine Ski House"},{"$f":"IFERROR(IF(Dane_potencjalnych_klientów[Zamknięcie \nprognozy] <>\"\",IF(Dane_potencjalnych_klientów[Zamknięcie \nprognozy]= \"Styczeń\",Dane_potencjalnych_klientów[Prognoza \nważona],0),\"\"),\"\")","v":{"v":0,"d":"0 zł"}},{"$f":"IFERROR(IF(Dane_potencjalnych_klientów[Zamknięcie \nprognozy] <>\"\",IF(Dane_potencjalnych_klientów[Zamknięcie \nprognozy]= \"Luty\",Dane_potencjalnych_klientów[Prognoza \nważona],0),\"\"),\"\")","v":{"v":0,"d":"0 zł"}},{"$f":"IFERROR(IF(Dane_potencjalnych_klientów[Zamknięcie \nprognozy] <>\"\",IF(Dane_potencjalnych_klientów[Zamknięcie \nprognozy]= \"Marzec\",Dane_potencjalnych_klientów[Prognoza \nważona],0),\"\"),\"\")","v":{"v":20000,"d":"20,000 zł"}},{"$f":"IFERROR(IF(Dane_potencjalnych_klientów[Zamknięcie \nprognozy] <>\"\",IF(Dane_potencjalnych_klientów[Zamknięcie \nprognozy]= \"Kwiecień\",Dane_potencjalnych_klientów[Prognoza \nważona],0),\"\"),\"\")","v":{"v":0,"d":"0 zł"}},{"$f":"IFERROR(IF(Dane_potencjalnych_klientów[Zamknięcie \nprognozy] <>\"\",IF(Dane_potencjalnych_klientów[Zamknięcie \nprognozy]= \"Maj\",Dane_potencjalnych_klientów[Prognoza \nważona],0),\"\"),\"\")","v":{"v":0,"d":"0 zł"}},{"$f":"IFERROR(IF(Dane_potencjalnych_klientów[Zamknięcie \nprognozy] <>\"\",IF(Dane_potencjalnych_klientów[Zamknięcie \nprognozy]= \"Czerwiec\",Dane_potencjalnych_klientów[Prognoza \nważona],0),\"\"),\"\")","v":{"v":0,"d":"0 zł"}},{"$f":"IFERROR(IF(Dane_potencjalnych_klientów[Zamknięcie \nprognozy] <>\"\",IF(Dane_potencjalnych_klientów[Zamknięcie \nprognozy]= \"Lipiec\",Dane_potencjalnych_klientów[Prognoza \nważona],0),\"\"),\"\")","v":{"v":0,"d":"0 zł"}},{"$f":"IFERROR(IF(Dane_potencjalnych_klientów[Zamknięcie \nprognozy] <>\"\",IF(Dane_potencjalnych_klientów[Zamknięcie \nprognozy]= \"Sierpień\",Dane_potencjalnych_klientów[Prognoza \nważona],0),\"\"),\"\")","v":{"v":0,"d":"0 zł"}},{"$f":"IFERROR(IF(Dane_potencjalnych_klientów[Zamknięcie \nprognozy] <>\"\",IF(Dane_potencjalnych_klientów[Zamknięcie \nprognozy]= \"Wrzesień\",Dane_potencjalnych_klientów[Prognoza \nważona],0),\"\"),\"\")","v":{"v":0,"d":"0 zł"}},{"$f":"IFERROR(IF(Dane_potencjalnych_klientów[Zamknięcie \nprognozy] <>\"\",IF(Dane_potencjalnych_klientów[Zamknięcie \nprognozy]= \"Październik\",Dane_potencjalnych_klientów[Prognoza \nważona],0),\"\"),\"\")","v":{"v":0,"d":"0 zł"}},{"$f":"IFERROR(IF(Dane_potencjalnych_klientów[Zamknięcie \nprognozy] <>\"\",IF(Dane_potencjalnych_klientów[Zamknięcie \nprognozy]= \"Listopad\",Dane_potencjalnych_klientów[Prognoza \nważona],0),\"\"),\"\")","v":{"v":0,"d":"0 zł"}},{"$f":"IFERROR(IF(Dane_potencjalnych_klientów[Zamknięcie \nprognozy] <>\"\",IF(Dane_potencjalnych_klientów[Zamknięcie \nprognozy]= \"Grudzień\",Dane_potencjalnych_klientów[Prognoza \nważona],0),\"\"),\"\")","v":{"v":0,"d":"0 zł"}}]
[null,{"$f":"IFERROR(IF(AND(Dane_potencjalnych_klientów[Nazwa potencjalnego klienta] <> \"\", ROW(Sprzedaż_prognozowana[Nazwa potencjalnego klienta])<>Ostatni_wpis),Dane_potencjalnych_klientów[Nazwa potencjalnego klienta], \"\"),\"\")","v":""},{"$f":"IFERROR(IF(Dane_potencjalnych_klientów[Zamknięcie \nprognozy] <>\"\",IF(Dane_potencjalnych_klientów[Zamknięcie \nprognozy]= \"Styczeń\",Dane_potencjalnych_klientów[Prognoza \nważona],0),\"\"),\"\")","v":""},{"$f":"IFERROR(IF(Dane_potencjalnych_klientów[Zamknięcie \nprognozy] <>\"\",IF(Dane_potencjalnych_klientów[Zamknięcie \nprognozy]= \"Luty\",Dane_potencjalnych_klientów[Prognoza \nważona],0),\"\"),\"\")","v":""},{"$f":"IFERROR(IF(Dane_potencjalnych_klientów[Zamknięcie \nprognozy] <>\"\",IF(Dane_potencjalnych_klientów[Zamknięcie \nprognozy]= \"Marzec\",Dane_potencjalnych_klientów[Prognoza \nważona],0),\"\"),\"\")","v":""},{"$f":"IFERROR(IF(Dane_potencjalnych_klientów[Zamknięcie \nprognozy] <>\"\",IF(Dane_potencjalnych_klientów[Zamknięcie \nprognozy]= \"Kwiecień\",Dane_potencjalnych_klientów[Prognoza \nważona],0),\"\"),\"\")","v":""},{"$f":"IFERROR(IF(Dane_potencjalnych_klientów[Zamknięcie \nprognozy] <>\"\",IF(Dane_potencjalnych_klientów[Zamknięcie \nprognozy]= \"Maj\",Dane_potencjalnych_klientów[Prognoza \nważona],0),\"\"),\"\")","v":""},{"$f":"IFERROR(IF(Dane_potencjalnych_klientów[Zamknięcie \nprognozy] <>\"\",IF(Dane_potencjalnych_klientów[Zamknięcie \nprognozy]= \"Czerwiec\",Dane_potencjalnych_klientów[Prognoza \nważona],0),\"\"),\"\")","v":""},{"$f":"IFERROR(IF(Dane_potencjalnych_klientów[Zamknięcie \nprognozy] <>\"\",IF(Dane_potencjalnych_klientów[Zamknięcie \nprognozy]= \"Lipiec\",Dane_potencjalnych_klientów[Prognoza \nważona],0),\"\"),\"\")","v":""},{"$f":"IFERROR(IF(Dane_potencjalnych_klientów[Zamknięcie \nprognozy] <>\"\",IF(Dane_potencjalnych_klientów[Zamknięcie \nprognozy]= \"Sierpień\",Dane_potencjalnych_klientów[Prognoza \nważona],0),\"\"),\"\")","v":""},{"$f":"IFERROR(IF(Dane_potencjalnych_klientów[Zamknięcie \nprognozy] <>\"\",IF(Dane_potencjalnych_klientów[Zamknięcie \nprognozy]= \"Wrzesień\",Dane_potencjalnych_klientów[Prognoza \nważona],0),\"\"),\"\")","v":""},{"$f":"IFERROR(IF(Dane_potencjalnych_klientów[Zamknięcie \nprognozy] <>\"\",IF(Dane_potencjalnych_klientów[Zamknięcie \nprognozy]= \"Październik\",Dane_potencjalnych_klientów[Prognoza \nważona],0),\"\"),\"\")","v":""},{"$f":"IFERROR(IF(Dane_potencjalnych_klientów[Zamknięcie \nprognozy] <>\"\",IF(Dane_potencjalnych_klientów[Zamknięcie \nprognozy]= \"Listopad\",Dane_potencjalnych_klientów[Prognoza \nważona],0),\"\"),\"\")","v":""},{"$f":"IFERROR(IF(Dane_potencjalnych_klientów[Zamknięcie \nprognozy] <>\"\",IF(Dane_potencjalnych_klientów[Zamknięcie \nprognozy]= \"Grudzień\",Dane_potencjalnych_klientów[Prognoza \nważona],0),\"\"),\"\")","v":""}]
[null,{"$f":"IFERROR(IF(AND(Dane_potencjalnych_klientów[Nazwa potencjalnego klienta] <> \"\", ROW(Sprzedaż_prognozowana[Nazwa potencjalnego klienta])<>Ostatni_wpis),Dane_potencjalnych_klientów[Nazwa potencjalnego klienta], \"\"),\"\")","v":""},{"$f":"IFERROR(IF(Dane_potencjalnych_klientów[Zamknięcie \nprognozy] <>\"\",IF(Dane_potencjalnych_klientów[Zamknięcie \nprognozy]= \"Styczeń\",Dane_potencjalnych_klientów[Prognoza \nważona],0),\"\"),\"\")","v":""},{"$f":"IFERROR(IF(Dane_potencjalnych_klientów[Zamknięcie \nprognozy] <>\"\",IF(Dane_potencjalnych_klientów[Zamknięcie \nprognozy]= \"Luty\",Dane_potencjalnych_klientów[Prognoza \nważona],0),\"\"),\"\")","v":""},{"$f":"IFERROR(IF(Dane_potencjalnych_klientów[Zamknięcie \nprognozy] <>\"\",IF(Dane_potencjalnych_klientów[Zamknięcie \nprognozy]= \"Marzec\",Dane_potencjalnych_klientów[Prognoza \nważona],0),\"\"),\"\")","v":""},{"$f":"IFERROR(IF(Dane_potencjalnych_klientów[Zamknięcie \nprognozy] <>\"\",IF(Dane_potencjalnych_klientów[Zamknięcie \nprognozy]= \"Kwiecień\",Dane_potencjalnych_klientów[Prognoza \nważona],0),\"\"),\"\")","v":""},{"$f":"IFERROR(IF(Dane_potencjalnych_klientów[Zamknięcie \nprognozy] <>\"\",IF(Dane_potencjalnych_klientów[Zamknięcie \nprognozy]= \"Maj\",Dane_potencjalnych_klientów[Prognoza \nważona],0),\"\"),\"\")","v":""},{"$f":"IFERROR(IF(Dane_potencjalnych_klientów[Zamknięcie \nprognozy] <>\"\",IF(Dane_potencjalnych_klientów[Zamknięcie \nprognozy]= \"Czerwiec\",Dane_potencjalnych_klientów[Prognoza \nważona],0),\"\"),\"\")","v":""},{"$f":"IFERROR(IF(Dane_potencjalnych_klientów[Zamknięcie \nprognozy] <>\"\",IF(Dane_potencjalnych_klientów[Zamknięcie \nprognozy]= \"Lipiec\",Dane_potencjalnych_klientów[Prognoza \nważona],0),\"\"),\"\")","v":""},{"$f":"IFERROR(IF(Dane_potencjalnych_klientów[Zamknięcie \nprognozy] <>\"\",IF(Dane_potencjalnych_klientów[Zamknięcie \nprognozy]= \"Sierpień\",Dane_potencjalnych_klientów[Prognoza \nważona],0),\"\"),\"\")","v":""},{"$f":"IFERROR(IF(Dane_potencjalnych_klientów[Zamknięcie \nprognozy] <>\"\",IF(Dane_potencjalnych_klientów[Zamknięcie \nprognozy]= \"Wrzesień\",Dane_potencjalnych_klientów[Prognoza \nważona],0),\"\"),\"\")","v":""},{"$f":"IFERROR(IF(Dane_potencjalnych_klientów[Zamknięcie \nprognozy] <>\"\",IF(Dane_potencjalnych_klientów[Zamknięcie \nprognozy]= \"Październik\",Dane_potencjalnych_klientów[Prognoza \nważona],0),\"\"),\"\")","v":""},{"$f":"IFERROR(IF(Dane_potencjalnych_klientów[Zamknięcie \nprognozy] <>\"\",IF(Dane_potencjalnych_klientów[Zamknięcie \nprognozy]= \"Listopad\",Dane_potencjalnych_klientów[Prognoza \nważona],0),\"\"),\"\")","v":""},{"$f":"IFERROR(IF(Dane_potencjalnych_klientów[Zamknięcie \nprognozy] <>\"\",IF(Dane_potencjalnych_klientów[Zamknięcie \nprognozy]= \"Grudzień\",Dane_potencjalnych_klientów[Prognoza \nważona],0),\"\"),\"\")","v":""}]
[null,{"$f":"IFERROR(IF(AND(Dane_potencjalnych_klientów[Nazwa potencjalnego klienta] <> \"\", ROW(Sprzedaż_prognozowana[Nazwa potencjalnego klienta])<>Ostatni_wpis),Dane_potencjalnych_klientów[Nazwa potencjalnego klienta], \"\"),\"\")","v":""},{"$f":"IFERROR(IF(Dane_potencjalnych_klientów[Zamknięcie \nprognozy] <>\"\",IF(Dane_potencjalnych_klientów[Zamknięcie \nprognozy]= \"Styczeń\",Dane_potencjalnych_klientów[Prognoza \nważona],0),\"\"),\"\")","v":""},{"$f":"IFERROR(IF(Dane_potencjalnych_klientów[Zamknięcie \nprognozy] <>\"\",IF(Dane_potencjalnych_klientów[Zamknięcie \nprognozy]= \"Luty\",Dane_potencjalnych_klientów[Prognoza \nważona],0),\"\"),\"\")","v":""},{"$f":"IFERROR(IF(Dane_potencjalnych_klientów[Zamknięcie \nprognozy] <>\"\",IF(Dane_potencjalnych_klientów[Zamknięcie \nprognozy]= \"Marzec\",Dane_potencjalnych_klientów[Prognoza \nważona],0),\"\"),\"\")","v":""},{"$f":"IFERROR(IF(Dane_potencjalnych_klientów[Zamknięcie \nprognozy] <>\"\",IF(Dane_potencjalnych_klientów[Zamknięcie \nprognozy]= \"Kwiecień\",Dane_potencjalnych_klientów[Prognoza \nważona],0),\"\"),\"\")","v":""},{"$f":"IFERROR(IF(Dane_potencjalnych_klientów[Zamknięcie \nprognozy] <>\"\",IF(Dane_potencjalnych_klientów[Zamknięcie \nprognozy]= \"Maj\",Dane_potencjalnych_klientów[Prognoza \nważona],0),\"\"),\"\")","v":""},{"$f":"IFERROR(IF(Dane_potencjalnych_klientów[Zamknięcie \nprognozy] <>\"\",IF(Dane_potencjalnych_klientów[Zamknięcie \nprognozy]= \"Czerwiec\",Dane_potencjalnych_klientów[Prognoza \nważona],0),\"\"),\"\")","v":""},{"$f":"IFERROR(IF(Dane_potencjalnych_klientów[Zamknięcie \nprognozy] <>\"\",IF(Dane_potencjalnych_klientów[Zamknięcie \nprognozy]= \"Lipiec\",Dane_potencjalnych_klientów[Prognoza \nważona],0),\"\"),\"\")","v":""},{"$f":"IFERROR(IF(Dane_potencjalnych_klientów[Zamknięcie \nprognozy] <>\"\",IF(Dane_potencjalnych_klientów[Zamknięcie \nprognozy]= \"Sierpień\",Dane_potencjalnych_klientów[Prognoza \nważona],0),\"\"),\"\")","v":""},{"$f":"IFERROR(IF(Dane_potencjalnych_klientów[Zamknięcie \nprognozy] <>\"\",IF(Dane_potencjalnych_klientów[Zamknięcie \nprognozy]= \"Wrzesień\",Dane_potencjalnych_klientów[Prognoza \nważona],0),\"\"),\"\")","v":""},{"$f":"IFERROR(IF(Dane_potencjalnych_klientów[Zamknięcie \nprognozy] <>\"\",IF(Dane_potencjalnych_klientów[Zamknięcie \nprognozy]= \"Październik\",Dane_potencjalnych_klientów[Prognoza \nważona],0),\"\"),\"\")","v":""},{"$f":"IFERROR(IF(Dane_potencjalnych_klientów[Zamknięcie \nprognozy] <>\"\",IF(Dane_potencjalnych_klientów[Zamknięcie \nprognozy]= \"Listopad\",Dane_potencjalnych_klientów[Prognoza \nważona],0),\"\"),\"\")","v":""},{"$f":"IFERROR(IF(Dane_potencjalnych_klientów[Zamknięcie \nprognozy] <>\"\",IF(Dane_potencjalnych_klientów[Zamknięcie \nprognozy]= \"Grudzień\",Dane_potencjalnych_klientów[Prognoza \nważona],0),\"\"),\"\")","v":""}]
[null,{"$f":"IFERROR(IF(AND(Dane_potencjalnych_klientów[Nazwa potencjalnego klienta] <> \"\", ROW(Sprzedaż_prognozowana[Nazwa potencjalnego klienta])<>Ostatni_wpis),Dane_potencjalnych_klientów[Nazwa potencjalnego klienta], \"\"),\"\")","v":""},{"$f":"IFERROR(IF(Dane_potencjalnych_klientów[Zamknięcie \nprognozy] <>\"\",IF(Dane_potencjalnych_klientów[Zamknięcie \nprognozy]= \"Styczeń\",Dane_potencjalnych_klientów[Prognoza \nważona],0),\"\"),\"\")","v":""},{"$f":"IFERROR(IF(Dane_potencjalnych_klientów[Zamknięcie \nprognozy] <>\"\",IF(Dane_potencjalnych_klientów[Zamknięcie \nprognozy]= \"Luty\",Dane_potencjalnych_klientów[Prognoza \nważona],0),\"\"),\"\")","v":""},{"$f":"IFERROR(IF(Dane_potencjalnych_klientów[Zamknięcie \nprognozy] <>\"\",IF(Dane_potencjalnych_klientów[Zamknięcie \nprognozy]= \"Marzec\",Dane_potencjalnych_klientów[Prognoza \nważona],0),\"\"),\"\")","v":""},{"$f":"IFERROR(IF(Dane_potencjalnych_klientów[Zamknięcie \nprognozy] <>\"\",IF(Dane_potencjalnych_klientów[Zamknięcie \nprognozy]= \"Kwiecień\",Dane_potencjalnych_klientów[Prognoza \nważona],0),\"\"),\"\")","v":""},{"$f":"IFERROR(IF(Dane_potencjalnych_klientów[Zamknięcie \nprognozy] <>\"\",IF(Dane_potencjalnych_klientów[Zamknięcie \nprognozy]= \"Maj\",Dane_potencjalnych_klientów[Prognoza \nważona],0),\"\"),\"\")","v":""},{"$f":"IFERROR(IF(Dane_potencjalnych_klientów[Zamknięcie \nprognozy] <>\"\",IF(Dane_potencjalnych_klientów[Zamknięcie \nprognozy]= \"Czerwiec\",Dane_potencjalnych_klientów[Prognoza \nważona],0),\"\"),\"\")","v":""},{"$f":"IFERROR(IF(Dane_potencjalnych_klientów[Zamknięcie \nprognozy] <>\"\",IF(Dane_potencjalnych_klientów[Zamknięcie \nprognozy]= \"Lipiec\",Dane_potencjalnych_klientów[Prognoza \nważona],0),\"\"),\"\")","v":""},{"$f":"IFERROR(IF(Dane_potencjalnych_klientów[Zamknięcie \nprognozy] <>\"\",IF(Dane_potencjalnych_klientów[Zamknięcie \nprognozy]= \"Sierpień\",Dane_potencjalnych_klientów[Prognoza \nważona],0),\"\"),\"\")","v":""},{"$f":"IFERROR(IF(Dane_potencjalnych_klientów[Zamknięcie \nprognozy] <>\"\",IF(Dane_potencjalnych_klientów[Zamknięcie \nprognozy]= \"Wrzesień\",Dane_potencjalnych_klientów[Prognoza \nważona],0),\"\"),\"\")","v":""},{"$f":"IFERROR(IF(Dane_potencjalnych_klientów[Zamknięcie \nprognozy] <>\"\",IF(Dane_potencjalnych_klientów[Zamknięcie \nprognozy]= \"Październik\",Dane_potencjalnych_klientów[Prognoza \nważona],0),\"\"),\"\")","v":""},{"$f":"IFERROR(IF(Dane_potencjalnych_klientów[Zamknięcie \nprognozy] <>\"\",IF(Dane_potencjalnych_klientów[Zamknięcie \nprognozy]= \"Listopad\",Dane_potencjalnych_klientów[Prognoza \nważona],0),\"\"),\"\")","v":""},{"$f":"IFERROR(IF(Dane_potencjalnych_klientów[Zamknięcie \nprognozy] <>\"\",IF(Dane_potencjalnych_klientów[Zamknięcie \nprognozy]= \"Grudzień\",Dane_potencjalnych_klientów[Prognoza \nważona],0),\"\"),\"\")","v":""}]
[null,{"$f":"IFERROR(IF(AND(Dane_potencjalnych_klientów[Nazwa potencjalnego klienta] <> \"\", ROW(Sprzedaż_prognozowana[Nazwa potencjalnego klienta])<>Ostatni_wpis),Dane_potencjalnych_klientów[Nazwa potencjalnego klienta], \"\"),\"\")","v":""},{"$f":"IFERROR(IF(Dane_potencjalnych_klientów[Zamknięcie \nprognozy] <>\"\",IF(Dane_potencjalnych_klientów[Zamknięcie \nprognozy]= \"Styczeń\",Dane_potencjalnych_klientów[Prognoza \nważona],0),\"\"),\"\")","v":""},{"$f":"IFERROR(IF(Dane_potencjalnych_klientów[Zamknięcie \nprognozy] <>\"\",IF(Dane_potencjalnych_klientów[Zamknięcie \nprognozy]= \"Luty\",Dane_potencjalnych_klientów[Prognoza \nważona],0),\"\"),\"\")","v":""},{"$f":"IFERROR(IF(Dane_potencjalnych_klientów[Zamknięcie \nprognozy] <>\"\",IF(Dane_potencjalnych_klientów[Zamknięcie \nprognozy]= \"Marzec\",Dane_potencjalnych_klientów[Prognoza \nważona],0),\"\"),\"\")","v":""},{"$f":"IFERROR(IF(Dane_potencjalnych_klientów[Zamknięcie \nprognozy] <>\"\",IF(Dane_potencjalnych_klientów[Zamknięcie \nprognozy]= \"Kwiecień\",Dane_potencjalnych_klientów[Prognoza \nważona],0),\"\"),\"\")","v":""},{"$f":"IFERROR(IF(Dane_potencjalnych_klientów[Zamknięcie \nprognozy] <>\"\",IF(Dane_potencjalnych_klientów[Zamknięcie \nprognozy]= \"Maj\",Dane_potencjalnych_klientów[Prognoza \nważona],0),\"\"),\"\")","v":""},{"$f":"IFERROR(IF(Dane_potencjalnych_klientów[Zamknięcie \nprognozy] <>\"\",IF(Dane_potencjalnych_klientów[Zamknięcie \nprognozy]= \"Czerwiec\",Dane_potencjalnych_klientów[Prognoza \nważona],0),\"\"),\"\")","v":""},{"$f":"IFERROR(IF(Dane_potencjalnych_klientów[Zamknięcie \nprognozy] <>\"\",IF(Dane_potencjalnych_klientów[Zamknięcie \nprognozy]= \"Lipiec\",Dane_potencjalnych_klientów[Prognoza \nważona],0),\"\"),\"\")","v":""},{"$f":"IFERROR(IF(Dane_potencjalnych_klientów[Zamknięcie \nprognozy] <>\"\",IF(Dane_potencjalnych_klientów[Zamknięcie \nprognozy]= \"Sierpień\",Dane_potencjalnych_klientów[Prognoza \nważona],0),\"\"),\"\")","v":""},{"$f":"IFERROR(IF(Dane_potencjalnych_klientów[Zamknięcie \nprognozy] <>\"\",IF(Dane_potencjalnych_klientów[Zamknięcie \nprognozy]= \"Wrzesień\",Dane_potencjalnych_klientów[Prognoza \nważona],0),\"\"),\"\")","v":""},{"$f":"IFERROR(IF(Dane_potencjalnych_klientów[Zamknięcie \nprognozy] <>\"\",IF(Dane_potencjalnych_klientów[Zamknięcie \nprognozy]= \"Październik\",Dane_potencjalnych_klientów[Prognoza \nważona],0),\"\"),\"\")","v":""},{"$f":"IFERROR(IF(Dane_potencjalnych_klientów[Zamknięcie \nprognozy] <>\"\",IF(Dane_potencjalnych_klientów[Zamknięcie \nprognozy]= \"Listopad\",Dane_potencjalnych_klientów[Prognoza \nważona],0),\"\"),\"\")","v":""},{"$f":"IFERROR(IF(Dane_potencjalnych_klientów[Zamknięcie \nprognozy] <>\"\",IF(Dane_potencjalnych_klientów[Zamknięcie \nprognozy]= \"Grudzień\",Dane_potencjalnych_klientów[Prognoza \nważona],0),\"\"),\"\")","v":""}]
[null,{"$f":"IFERROR(IF(AND(Dane_potencjalnych_klientów[Nazwa potencjalnego klienta] <> \"\", ROW(Sprzedaż_prognozowana[Nazwa potencjalnego klienta])<>Ostatni_wpis),Dane_potencjalnych_klientów[Nazwa potencjalnego klienta], \"\"),\"\")","v":""},{"$f":"IFERROR(IF(Dane_potencjalnych_klientów[Zamknięcie \nprognozy] <>\"\",IF(Dane_potencjalnych_klientów[Zamknięcie \nprognozy]= \"Styczeń\",Dane_potencjalnych_klientów[Prognoza \nważona],0),\"\"),\"\")","v":""},{"$f":"IFERROR(IF(Dane_potencjalnych_klientów[Zamknięcie \nprognozy] <>\"\",IF(Dane_potencjalnych_klientów[Zamknięcie \nprognozy]= \"Luty\",Dane_potencjalnych_klientów[Prognoza \nważona],0),\"\"),\"\")","v":""},{"$f":"IFERROR(IF(Dane_potencjalnych_klientów[Zamknięcie \nprognozy] <>\"\",IF(Dane_potencjalnych_klientów[Zamknięcie \nprognozy]= \"Marzec\",Dane_potencjalnych_klientów[Prognoza \nważona],0),\"\"),\"\")","v":""},{"$f":"IFERROR(IF(Dane_potencjalnych_klientów[Zamknięcie \nprognozy] <>\"\",IF(Dane_potencjalnych_klientów[Zamknięcie \nprognozy]= \"Kwiecień\",Dane_potencjalnych_klientów[Prognoza \nważona],0),\"\"),\"\")","v":""},{"$f":"IFERROR(IF(Dane_potencjalnych_klientów[Zamknięcie \nprognozy] <>\"\",IF(Dane_potencjalnych_klientów[Zamknięcie \nprognozy]= \"Maj\",Dane_potencjalnych_klientów[Prognoza \nważona],0),\"\"),\"\")","v":""},{"$f":"IFERROR(IF(Dane_potencjalnych_klientów[Zamknięcie \nprognozy] <>\"\",IF(Dane_potencjalnych_klientów[Zamknięcie \nprognozy]= \"Czerwiec\",Dane_potencjalnych_klientów[Prognoza \nważona],0),\"\"),\"\")","v":""},{"$f":"IFERROR(IF(Dane_potencjalnych_klientów[Zamknięcie \nprognozy] <>\"\",IF(Dane_potencjalnych_klientów[Zamknięcie \nprognozy]= \"Lipiec\",Dane_potencjalnych_klientów[Prognoza \nważona],0),\"\"),\"\")","v":""},{"$f":"IFERROR(IF(Dane_potencjalnych_klientów[Zamknięcie \nprognozy] <>\"\",IF(Dane_potencjalnych_klientów[Zamknięcie \nprognozy]= \"Sierpień\",Dane_potencjalnych_klientów[Prognoza \nważona],0),\"\"),\"\")","v":""},{"$f":"IFERROR(IF(Dane_potencjalnych_klientów[Zamknięcie \nprognozy] <>\"\",IF(Dane_potencjalnych_klientów[Zamknięcie \nprognozy]= \"Wrzesień\",Dane_potencjalnych_klientów[Prognoza \nważona],0),\"\"),\"\")","v":""},{"$f":"IFERROR(IF(Dane_potencjalnych_klientów[Zamknięcie \nprognozy] <>\"\",IF(Dane_potencjalnych_klientów[Zamknięcie \nprognozy]= \"Październik\",Dane_potencjalnych_klientów[Prognoza \nważona],0),\"\"),\"\")","v":""},{"$f":"IFERROR(IF(Dane_potencjalnych_klientów[Zamknięcie \nprognozy] <>\"\",IF(Dane_potencjalnych_klientów[Zamknięcie \nprognozy]= \"Listopad\",Dane_potencjalnych_klientów[Prognoza \nważona],0),\"\"),\"\")","v":""},{"$f":"IFERROR(IF(Dane_potencjalnych_klientów[Zamknięcie \nprognozy] <>\"\",IF(Dane_potencjalnych_klientów[Zamknięcie \nprognozy]= \"Grudzień\",Dane_potencjalnych_klientów[Prognoza \nważona],0),\"\"),\"\")","v":""}]
[null,{"$f":"IFERROR(IF(AND(Dane_potencjalnych_klientów[Nazwa potencjalnego klienta] <> \"\", ROW(Sprzedaż_prognozowana[Nazwa potencjalnego klienta])<>Ostatni_wpis),Dane_potencjalnych_klientów[Nazwa potencjalnego klienta], \"\"),\"\")","v":""},{"$f":"IFERROR(IF(Dane_potencjalnych_klientów[Zamknięcie \nprognozy] <>\"\",IF(Dane_potencjalnych_klientów[Zamknięcie \nprognozy]= \"Styczeń\",Dane_potencjalnych_klientów[Prognoza \nważona],0),\"\"),\"\")","v":""},{"$f":"IFERROR(IF(Dane_potencjalnych_klientów[Zamknięcie \nprognozy] <>\"\",IF(Dane_potencjalnych_klientów[Zamknięcie \nprognozy]= \"Luty\",Dane_potencjalnych_klientów[Prognoza \nważona],0),\"\"),\"\")","v":""},{"$f":"IFERROR(IF(Dane_potencjalnych_klientów[Zamknięcie \nprognozy] <>\"\",IF(Dane_potencjalnych_klientów[Zamknięcie \nprognozy]= \"Marzec\",Dane_potencjalnych_klientów[Prognoza \nważona],0),\"\"),\"\")","v":""},{"$f":"IFERROR(IF(Dane_potencjalnych_klientów[Zamknięcie \nprognozy] <>\"\",IF(Dane_potencjalnych_klientów[Zamknięcie \nprognozy]= \"Kwiecień\",Dane_potencjalnych_klientów[Prognoza \nważona],0),\"\"),\"\")","v":""},{"$f":"IFERROR(IF(Dane_potencjalnych_klientów[Zamknięcie \nprognozy] <>\"\",IF(Dane_potencjalnych_klientów[Zamknięcie \nprognozy]= \"Maj\",Dane_potencjalnych_klientów[Prognoza \nważona],0),\"\"),\"\")","v":""},{"$f":"IFERROR(IF(Dane_potencjalnych_klientów[Zamknięcie \nprognozy] <>\"\",IF(Dane_potencjalnych_klientów[Zamknięcie \nprognozy]= \"Czerwiec\",Dane_potencjalnych_klientów[Prognoza \nważona],0),\"\"),\"\")","v":""},{"$f":"IFERROR(IF(Dane_potencjalnych_klientów[Zamknięcie \nprognozy] <>\"\",IF(Dane_potencjalnych_klientów[Zamknięcie \nprognozy]= \"Lipiec\",Dane_potencjalnych_klientów[Prognoza \nważona],0),\"\"),\"\")","v":""},{"$f":"IFERROR(IF(Dane_potencjalnych_klientów[Zamknięcie \nprognozy] <>\"\",IF(Dane_potencjalnych_klientów[Zamknięcie \nprognozy]= \"Sierpień\",Dane_potencjalnych_klientów[Prognoza \nważona],0),\"\"),\"\")","v":""},{"$f":"IFERROR(IF(Dane_potencjalnych_klientów[Zamknięcie \nprognozy] <>\"\",IF(Dane_potencjalnych_klientów[Zamknięcie \nprognozy]= \"Wrzesień\",Dane_potencjalnych_klientów[Prognoza \nważona],0),\"\"),\"\")","v":""},{"$f":"IFERROR(IF(Dane_potencjalnych_klientów[Zamknięcie \nprognozy] <>\"\",IF(Dane_potencjalnych_klientów[Zamknięcie \nprognozy]= \"Październik\",Dane_potencjalnych_klientów[Prognoza \nważona],0),\"\"),\"\")","v":""},{"$f":"IFERROR(IF(Dane_potencjalnych_klientów[Zamknięcie \nprognozy] <>\"\",IF(Dane_potencjalnych_klientów[Zamknięcie \nprognozy]= \"Listopad\",Dane_potencjalnych_klientów[Prognoza \nważona],0),\"\"),\"\")","v":""},{"$f":"IFERROR(IF(Dane_potencjalnych_klientów[Zamknięcie \nprognozy] <>\"\",IF(Dane_potencjalnych_klientów[Zamknięcie \nprognozy]= \"Grudzień\",Dane_potencjalnych_klientów[Prognoza \nważona],0),\"\"),\"\")","v":""}]
[null,{"$f":"IFERROR(IF(AND(Dane_potencjalnych_klientów[Nazwa potencjalnego klienta] <> \"\", ROW(Sprzedaż_prognozowana[Nazwa potencjalnego klienta])<>Ostatni_wpis),Dane_potencjalnych_klientów[Nazwa potencjalnego klienta], \"\"),\"\")","v":""},{"$f":"IFERROR(IF(Dane_potencjalnych_klientów[Zamknięcie \nprognozy] <>\"\",IF(Dane_potencjalnych_klientów[Zamknięcie \nprognozy]= \"Styczeń\",Dane_potencjalnych_klientów[Prognoza \nważona],0),\"\"),\"\")","v":""},{"$f":"IFERROR(IF(Dane_potencjalnych_klientów[Zamknięcie \nprognozy] <>\"\",IF(Dane_potencjalnych_klientów[Zamknięcie \nprognozy]= \"Luty\",Dane_potencjalnych_klientów[Prognoza \nważona],0),\"\"),\"\")","v":""},{"$f":"IFERROR(IF(Dane_potencjalnych_klientów[Zamknięcie \nprognozy] <>\"\",IF(Dane_potencjalnych_klientów[Zamknięcie \nprognozy]= \"Marzec\",Dane_potencjalnych_klientów[Prognoza \nważona],0),\"\"),\"\")","v":""},{"$f":"IFERROR(IF(Dane_potencjalnych_klientów[Zamknięcie \nprognozy] <>\"\",IF(Dane_potencjalnych_klientów[Zamknięcie \nprognozy]= \"Kwiecień\",Dane_potencjalnych_klientów[Prognoza \nważona],0),\"\"),\"\")","v":""},{"$f":"IFERROR(IF(Dane_potencjalnych_klientów[Zamknięcie \nprognozy] <>\"\",IF(Dane_potencjalnych_klientów[Zamknięcie \nprognozy]= \"Maj\",Dane_potencjalnych_klientów[Prognoza \nważona],0),\"\"),\"\")","v":""},{"$f":"IFERROR(IF(Dane_potencjalnych_klientów[Zamknięcie \nprognozy] <>\"\",IF(Dane_potencjalnych_klientów[Zamknięcie \nprognozy]= \"Czerwiec\",Dane_potencjalnych_klientów[Prognoza \nważona],0),\"\"),\"\")","v":""},{"$f":"IFERROR(IF(Dane_potencjalnych_klientów[Zamknięcie \nprognozy] <>\"\",IF(Dane_potencjalnych_klientów[Zamknięcie \nprognozy]= \"Lipiec\",Dane_potencjalnych_klientów[Prognoza \nważona],0),\"\"),\"\")","v":""},{"$f":"IFERROR(IF(Dane_potencjalnych_klientów[Zamknięcie \nprognozy] <>\"\",IF(Dane_potencjalnych_klientów[Zamknięcie \nprognozy]= \"Sierpień\",Dane_potencjalnych_klientów[Prognoza \nważona],0),\"\"),\"\")","v":""},{"$f":"IFERROR(IF(Dane_potencjalnych_klientów[Zamknięcie \nprognozy] <>\"\",IF(Dane_potencjalnych_klientów[Zamknięcie \nprognozy]= \"Wrzesień\",Dane_potencjalnych_klientów[Prognoza \nważona],0),\"\"),\"\")","v":""},{"$f":"IFERROR(IF(Dane_potencjalnych_klientów[Zamknięcie \nprognozy] <>\"\",IF(Dane_potencjalnych_klientów[Zamknięcie \nprognozy]= \"Październik\",Dane_potencjalnych_klientów[Prognoza \nważona],0),\"\"),\"\")","v":""},{"$f":"IFERROR(IF(Dane_potencjalnych_klientów[Zamknięcie \nprognozy] <>\"\",IF(Dane_potencjalnych_klientów[Zamknięcie \nprognozy]= \"Listopad\",Dane_potencjalnych_klientów[Prognoza \nważona],0),\"\"),\"\")","v":""},{"$f":"IFERROR(IF(Dane_potencjalnych_klientów[Zamknięcie \nprognozy] <>\"\",IF(Dane_potencjalnych_klientów[Zamknięcie \nprognozy]= \"Grudzień\",Dane_potencjalnych_klientów[Prognoza \nważona],0),\"\"),\"\")","v":""}]
[null,{"$f":"IFERROR(IF(AND(Dane_potencjalnych_klientów[Nazwa potencjalnego klienta] <> \"\", ROW(Sprzedaż_prognozowana[Nazwa potencjalnego klienta])<>Ostatni_wpis),Dane_potencjalnych_klientów[Nazwa potencjalnego klienta], \"\"),\"\")","v":""},{"$f":"IFERROR(IF(Dane_potencjalnych_klientów[Zamknięcie \nprognozy] <>\"\",IF(Dane_potencjalnych_klientów[Zamknięcie \nprognozy]= \"Styczeń\",Dane_potencjalnych_klientów[Prognoza \nważona],0),\"\"),\"\")","v":""},{"$f":"IFERROR(IF(Dane_potencjalnych_klientów[Zamknięcie \nprognozy] <>\"\",IF(Dane_potencjalnych_klientów[Zamknięcie \nprognozy]= \"Luty\",Dane_potencjalnych_klientów[Prognoza \nważona],0),\"\"),\"\")","v":""},{"$f":"IFERROR(IF(Dane_potencjalnych_klientów[Zamknięcie \nprognozy] <>\"\",IF(Dane_potencjalnych_klientów[Zamknięcie \nprognozy]= \"Marzec\",Dane_potencjalnych_klientów[Prognoza \nważona],0),\"\"),\"\")","v":""},{"$f":"IFERROR(IF(Dane_potencjalnych_klientów[Zamknięcie \nprognozy] <>\"\",IF(Dane_potencjalnych_klientów[Zamknięcie \nprognozy]= \"Kwiecień\",Dane_potencjalnych_klientów[Prognoza \nważona],0),\"\"),\"\")","v":""},{"$f":"IFERROR(IF(Dane_potencjalnych_klientów[Zamknięcie \nprognozy] <>\"\",IF(Dane_potencjalnych_klientów[Zamknięcie \nprognozy]= \"Maj\",Dane_potencjalnych_klientów[Prognoza \nważona],0),\"\"),\"\")","v":""},{"$f":"IFERROR(IF(Dane_potencjalnych_klientów[Zamknięcie \nprognozy] <>\"\",IF(Dane_potencjalnych_klientów[Zamknięcie \nprognozy]= \"Czerwiec\",Dane_potencjalnych_klientów[Prognoza \nważona],0),\"\"),\"\")","v":""},{"$f":"IFERROR(IF(Dane_potencjalnych_klientów[Zamknięcie \nprognozy] <>\"\",IF(Dane_potencjalnych_klientów[Zamknięcie \nprognozy]= \"Lipiec\",Dane_potencjalnych_klientów[Prognoza \nważona],0),\"\"),\"\")","v":""},{"$f":"IFERROR(IF(Dane_potencjalnych_klientów[Zamknięcie \nprognozy] <>\"\",IF(Dane_potencjalnych_klientów[Zamknięcie \nprognozy]= \"Sierpień\",Dane_potencjalnych_klientów[Prognoza \nważona],0),\"\"),\"\")","v":""},{"$f":"IFERROR(IF(Dane_potencjalnych_klientów[Zamknięcie \nprognozy] <>\"\",IF(Dane_potencjalnych_klientów[Zamknięcie \nprognozy]= \"Wrzesień\",Dane_potencjalnych_klientów[Prognoza \nważona],0),\"\"),\"\")","v":""},{"$f":"IFERROR(IF(Dane_potencjalnych_klientów[Zamknięcie \nprognozy] <>\"\",IF(Dane_potencjalnych_klientów[Zamknięcie \nprognozy]= \"Październik\",Dane_potencjalnych_klientów[Prognoza \nważona],0),\"\"),\"\")","v":""},{"$f":"IFERROR(IF(Dane_potencjalnych_klientów[Zamknięcie \nprognozy] <>\"\",IF(Dane_potencjalnych_klientów[Zamknięcie \nprognozy]= \"Listopad\",Dane_potencjalnych_klientów[Prognoza \nważona],0),\"\"),\"\")","v":""},{"$f":"IFERROR(IF(Dane_potencjalnych_klientów[Zamknięcie \nprognozy] <>\"\",IF(Dane_potencjalnych_klientów[Zamknięcie \nprognozy]= \"Grudzień\",Dane_potencjalnych_klientów[Prognoza \nważona],0),\"\"),\"\")","v":""}]
[null,{"$f":"IFERROR(IF(AND(Dane_potencjalnych_klientów[Nazwa potencjalnego klienta] <> \"\", ROW(Sprzedaż_prognozowana[Nazwa potencjalnego klienta])<>Ostatni_wpis),Dane_potencjalnych_klientów[Nazwa potencjalnego klienta], \"\"),\"\")","v":""},{"$f":"IFERROR(IF(Dane_potencjalnych_klientów[Zamknięcie \nprognozy] <>\"\",IF(Dane_potencjalnych_klientów[Zamknięcie \nprognozy]= \"Styczeń\",Dane_potencjalnych_klientów[Prognoza \nważona],0),\"\"),\"\")","v":""},{"$f":"IFERROR(IF(Dane_potencjalnych_klientów[Zamknięcie \nprognozy] <>\"\",IF(Dane_potencjalnych_klientów[Zamknięcie \nprognozy]= \"Luty\",Dane_potencjalnych_klientów[Prognoza \nważona],0),\"\"),\"\")","v":""},{"$f":"IFERROR(IF(Dane_potencjalnych_klientów[Zamknięcie \nprognozy] <>\"\",IF(Dane_potencjalnych_klientów[Zamknięcie \nprognozy]= \"Marzec\",Dane_potencjalnych_klientów[Prognoza \nważona],0),\"\"),\"\")","v":""},{"$f":"IFERROR(IF(Dane_potencjalnych_klientów[Zamknięcie \nprognozy] <>\"\",IF(Dane_potencjalnych_klientów[Zamknięcie \nprognozy]= \"Kwiecień\",Dane_potencjalnych_klientów[Prognoza \nważona],0),\"\"),\"\")","v":""},{"$f":"IFERROR(IF(Dane_potencjalnych_klientów[Zamknięcie \nprognozy] <>\"\",IF(Dane_potencjalnych_klientów[Zamknięcie \nprognozy]= \"Maj\",Dane_potencjalnych_klientów[Prognoza \nważona],0),\"\"),\"\")","v":""},{"$f":"IFERROR(IF(Dane_potencjalnych_klientów[Zamknięcie \nprognozy] <>\"\",IF(Dane_potencjalnych_klientów[Zamknięcie \nprognozy]= \"Czerwiec\",Dane_potencjalnych_klientów[Prognoza \nważona],0),\"\"),\"\")","v":""},{"$f":"IFERROR(IF(Dane_potencjalnych_klientów[Zamknięcie \nprognozy] <>\"\",IF(Dane_potencjalnych_klientów[Zamknięcie \nprognozy]= \"Lipiec\",Dane_potencjalnych_klientów[Prognoza \nważona],0),\"\"),\"\")","v":""},{"$f":"IFERROR(IF(Dane_potencjalnych_klientów[Zamknięcie \nprognozy] <>\"\",IF(Dane_potencjalnych_klientów[Zamknięcie \nprognozy]= \"Sierpień\",Dane_potencjalnych_klientów[Prognoza \nważona],0),\"\"),\"\")","v":""},{"$f":"IFERROR(IF(Dane_potencjalnych_klientów[Zamknięcie \nprognozy] <>\"\",IF(Dane_potencjalnych_klientów[Zamknięcie \nprognozy]= \"Wrzesień\",Dane_potencjalnych_klientów[Prognoza \nważona],0),\"\"),\"\")","v":""},{"$f":"IFERROR(IF(Dane_potencjalnych_klientów[Zamknięcie \nprognozy] <>\"\",IF(Dane_potencjalnych_klientów[Zamknięcie \nprognozy]= \"Październik\",Dane_potencjalnych_klientów[Prognoza \nważona],0),\"\"),\"\")","v":""},{"$f":"IFERROR(IF(Dane_potencjalnych_klientów[Zamknięcie \nprognozy] <>\"\",IF(Dane_potencjalnych_klientów[Zamknięcie \nprognozy]= \"Listopad\",Dane_potencjalnych_klientów[Prognoza \nważona],0),\"\"),\"\")","v":""},{"$f":"IFERROR(IF(Dane_potencjalnych_klientów[Zamknięcie \nprognozy] <>\"\",IF(Dane_potencjalnych_klientów[Zamknięcie \nprognozy]= \"Grudzień\",Dane_potencjalnych_klientów[Prognoza \nważona],0),\"\"),\"\")","v":""}]
[null,{"$f":"IFERROR(IF(AND(Dane_potencjalnych_klientów[Nazwa potencjalnego klienta] <> \"\", ROW(Sprzedaż_prognozowana[Nazwa potencjalnego klienta])<>Ostatni_wpis),Dane_potencjalnych_klientów[Nazwa potencjalnego klienta], \"\"),\"\")","v":""},{"$f":"IFERROR(IF(Dane_potencjalnych_klientów[Zamknięcie \nprognozy] <>\"\",IF(Dane_potencjalnych_klientów[Zamknięcie \nprognozy]= \"Styczeń\",Dane_potencjalnych_klientów[Prognoza \nważona],0),\"\"),\"\")","v":""},{"$f":"IFERROR(IF(Dane_potencjalnych_klientów[Zamknięcie \nprognozy] <>\"\",IF(Dane_potencjalnych_klientów[Zamknięcie \nprognozy]= \"Luty\",Dane_potencjalnych_klientów[Prognoza \nważona],0),\"\"),\"\")","v":""},{"$f":"IFERROR(IF(Dane_potencjalnych_klientów[Zamknięcie \nprognozy] <>\"\",IF(Dane_potencjalnych_klientów[Zamknięcie \nprognozy]= \"Marzec\",Dane_potencjalnych_klientów[Prognoza \nważona],0),\"\"),\"\")","v":""},{"$f":"IFERROR(IF(Dane_potencjalnych_klientów[Zamknięcie \nprognozy] <>\"\",IF(Dane_potencjalnych_klientów[Zamknięcie \nprognozy]= \"Kwiecień\",Dane_potencjalnych_klientów[Prognoza \nważona],0),\"\"),\"\")","v":""},{"$f":"IFERROR(IF(Dane_potencjalnych_klientów[Zamknięcie \nprognozy] <>\"\",IF(Dane_potencjalnych_klientów[Zamknięcie \nprognozy]= \"Maj\",Dane_potencjalnych_klientów[Prognoza \nważona],0),\"\"),\"\")","v":""},{"$f":"IFERROR(IF(Dane_potencjalnych_klientów[Zamknięcie \nprognozy] <>\"\",IF(Dane_potencjalnych_klientów[Zamknięcie \nprognozy]= \"Czerwiec\",Dane_potencjalnych_klientów[Prognoza \nważona],0),\"\"),\"\")","v":""},{"$f":"IFERROR(IF(Dane_potencjalnych_klientów[Zamknięcie \nprognozy] <>\"\",IF(Dane_potencjalnych_klientów[Zamknięcie \nprognozy]= \"Lipiec\",Dane_potencjalnych_klientów[Prognoza \nważona],0),\"\"),\"\")","v":""},{"$f":"IFERROR(IF(Dane_potencjalnych_klientów[Zamknięcie \nprognozy] <>\"\",IF(Dane_potencjalnych_klientów[Zamknięcie \nprognozy]= \"Sierpień\",Dane_potencjalnych_klientów[Prognoza \nważona],0),\"\"),\"\")","v":""},{"$f":"IFERROR(IF(Dane_potencjalnych_klientów[Zamknięcie \nprognozy] <>\"\",IF(Dane_potencjalnych_klientów[Zamknięcie \nprognozy]= \"Wrzesień\",Dane_potencjalnych_klientów[Prognoza \nważona],0),\"\"),\"\")","v":""},{"$f":"IFERROR(IF(Dane_potencjalnych_klientów[Zamknięcie \nprognozy] <>\"\",IF(Dane_potencjalnych_klientów[Zamknięcie \nprognozy]= \"Październik\",Dane_potencjalnych_klientów[Prognoza \nważona],0),\"\"),\"\")","v":""},{"$f":"IFERROR(IF(Dane_potencjalnych_klientów[Zamknięcie \nprognozy] <>\"\",IF(Dane_potencjalnych_klientów[Zamknięcie \nprognozy]= \"Listopad\",Dane_potencjalnych_klientów[Prognoza \nważona],0),\"\"),\"\")","v":""},{"$f":"IFERROR(IF(Dane_potencjalnych_klientów[Zamknięcie \nprognozy] <>\"\",IF(Dane_potencjalnych_klientów[Zamknięcie \nprognozy]= \"Grudzień\",Dane_potencjalnych_klientów[Prognoza \nważona],0),\"\"),\"\")","v":""}]
[null,"Suma",{"$f":"SUBTOTAL(109,Sprzedaż_prognozowana[Prognoza \nna styczeń])","v":{"v":270000,"d":"270,000 zł"}},{"$f":"SUBTOTAL(109,Sprzedaż_prognozowana[Prognoza \nna luty])","v":{"v":20000,"d":"20,000 zł"}},{"$f":"SUBTOTAL(109,Sprzedaż_prognozowana[Prognoza \nna marzec])","v":{"v":20000,"d":"20,000 zł"}},{"$f":"SUBTOTAL(109,Sprzedaż_prognozowana[Prognoza \nna kwiecień])","v":{"v":0,"d":"0 zł"}},{"$f":"SUBTOTAL(109,Sprzedaż_prognozowana[Prognoza \nna maj])","v":{"v":0,"d":"0 zł"}},{"$f":"SUBTOTAL(109,Sprzedaż_prognozowana[Prognoza \nna czerwiec])","v":{"v":0,"d":"0 zł"}},{"$f":"SUBTOTAL(109,Sprzedaż_prognozowana[Prognoza na lipiec])","v":{"v":0,"d":"0 zł"}},{"$f":"SUBTOTAL(109,Sprzedaż_prognozowana[Prognoza \nna sierpień])","v":{"v":0,"d":"0 zł"}},{"$f":"SUBTOTAL(109,Sprzedaż_prognozowana[Prognoza \nna wrzesień])","v":{"v":0,"d":"0 zł"}},{"$f":"SUBTOTAL(109,Sprzedaż_prognozowana[Prognoza \nna październik])","v":{"v":0,"d":"0 zł"}},{"$f":"SUBTOTAL(109,Sprzedaż_prognozowana[Prognoza \nna listopad])","v":{"v":0,"d":"0 zł"}},{"$f":"SUBTOTAL(109,Sprzedaż_prognozowana[Prognoza \nna grudzień])","v":{"v":0,"d":"0 zł"}}]
[null,"Suma narastająca",{"$f":"C20","v":{"v":270000,"d":"270,000 zł"}},{"$f":"C21+D20","v":{"v":290000,"d":"290,000 zł"}},{"v":310000,"d":"310,000 zł"},{"v":310000,"d":"310,000 zł"},{"v":310000,"d":"310,000 zł"},{"v":310000,"d":"310,000 zł"},{"v":310000,"d":"310,000 zł"},{"v":310000,"d":"310,000 zł"},{"v":310000,"d":"310,000 zł"},{"v":310000,"d":"310,000 zł"},{"v":310000,"d":"310,000 zł"},{"v":310000,"d":"310,000 zł"}]

{"sheet":"Miesięczna prognoza ważona","index":2,"n_rows":3,"n_cols":2,"rows_kept":3}
[null,{"$f":"Nazwa_firmy","v":"Nazwa firmy"}]
[null,"Miesięczna prognoza ważona"]
[null," "]